Cogmind - Beta 15 @@@ ROGUE MODE // 2025.10.09 @ 21:08:34 Player: Coblestone Result: Destroyed by G-34 Mercenary with Small Laser Performance ------------- Evolutions (1) 500 Regions Visited (2) 400 Robots Destroyed (41) 205 Value Destroyed (1006) 1006 Prototype IDs (2) 40 Alien Tech Used (0) 0 Bonus (0) 0 TOTAL SCORE: 2151 Bonus ------- None Cogmind --------- Core Integrity 0/400 Matter 215/300 Energy 325/325 System Corruption 0% Temperature Cool (6) Movement Walking (190) Ox1 Location -9/Materials Parts ------- > --- POWER (2) -------- Improved Ion Engine Light Nuclear Core > --- PROPULSION (2) --- Carbon-fiber Leg Carbon-fiber Leg > --- UTILITY (3) ------ Large Storage Unit Melee Analysis Suite Melee Analysis Suite > --- WEAPON (2) ------- Scythe Scythe > --- INVENTORY (15) --- Ion Engine Armored Treads Armored Treads Carbon-fiber Leg Improved Heat Sink Large Storage Unit Visual Processing Unit Terrain Scan Processor Improved Targeting Computer Melee Analysis Suite High-powered Tractor Beam Recalibrator Particle Gun Scythe Peak State ------------ > --- POWER ------------ Improved Ion Engine Light Nuclear Core > --- PROPULSION ------- Carbon-fiber Leg Carbon-fiber Leg > --- UTILITY ---------- Large Storage Unit Melee Analysis Suite Recalibrator > --- WEAPON ----------- Scythe Scythe > --- INVENTORY -------- Ion Engine Armored Treads Armored Treads Carbon-fiber Leg Improved Heat Sink Large Storage Unit Visual Processing Unit Terrain Scan Processor Improved Targeting Computer Melee Analysis Suite Melee Analysis Suite High-powered Tractor Beam Particle Gun Scythe [Rating: 28] Favorites ----------- Power Light Ion Engine Engine Light Ion Engine Power Core Light Nuclear Core Propulsion Aluminum Leg Treads Armored Treads Leg Aluminum Leg Wheel Wheel Utility Large Storage Unit Device Recalibrator Storage Large Storage Unit Processor Targeting Computer Protection Insulated Plating Weapon Scythe Energy Gun Particle Gun Ballistic Gun Assault Rifle Ballistic Cannon Improved Light Cannon Launcher Grenade Launcher Slashing Weapon Scythe Special Melee Weapon Datajack Build | -11 -10 -9 ------- Run | Yrd Mat Mat Slots Evolved 2 | . . 2 Power 1 | . . 1 Propulsion . | . . . Utility 1 | . . 1 Weapon . | . . . Parts Attached 50 | 5 10 35 Power 10 | 1 1 8 Engine 9 | 1 1 7 Core 1 | . . 1 Reactor . | . . . Propulsion 12 | 2 2 8 Treads 4 | . . 4 Leg 6 | 2 . 4 Wheel 2 | . 2 . Hover . | . . . Flight . | . . . Utility 13 | . 3 10 Device 4 | . . 4 Storage 2 | . 2 . Processor 4 | . 1 3 Hackware . | . . . Protection 3 | . . 3 Artifact . | . . . Weapon 15 | 2 4 9 Energy Gun 1 | . . 1 Energy Cannon . | . . . Ballistic Gun 6 | 2 1 3 Ballistic Cannon 2 | . 2 . Launcher 2 | . 1 1 Special Weapon . | . . . Impact Weapon . | . . . Slashing Weapon 3 | . . 3 Piercing Weapon . | . . . Special Melee Weapon 1 | . . 1 Unidentified Prototypes . | . . . Parts Lost 13 | . 5 8 Power 5 | . 1 4 Propulsion 3 | . 2 1 Utility 2 | . . 2 Weapon 3 | . 2 1 Highest Loss Streak 5 | . 5 3 To Critical Strikes . | . . . Average Backups 12 | 3 11 14 Power . | . . . Propulsion 3 | 1 2 4 Utility 5 | . 5 5 Weapon 3 | . 3 3 Tool/Special . | . . . Unused Backups 12 | . 3 9 Power 1 | . 1 . Propulsion 1 | . . 1 Utility 10 | . 2 8 Weapon . | . . . Tool/Special . | . . . Average Slot Usage (%) 95 | . 97 94 Engine 13 | . 13 13 Core 3 | . . 4 Treads 6 | . . 10 Leg 16 | . 25 11 Device 3 | . . 5 Storage 12 | . 16 11 Processor 11 | . 11 11 Protection 2 | . . 4 Energy Gun 1 | . . 2 Ballistic Gun 10 | . 19 5 Launcher 2 | . 5 1 Slashing Weapon 6 | . . 9 Special Melee Weapon 1 | . . 1 Peak Build Rating 28 | 5 10 28 Average Rating 16 | 3 7 22 On Entrance 5 | . 5 10 Naked Turns . | . . . Heaviest Build 47 | 7 47 40 Greatest Support 40 | 20 20 40 Greatest Overweight (x) 8 | . 2 8 Average Overweight (x) . | . 1 . Largest Inventory Capacity 15 | 5 15 15 Average Capacity 14 | 5 14 15 Most Carried 15 | 5 15 15 Average Carried 12 | 3 12 14 Final Capacity 15 | 5 15 15 Final Carried 14 | 5 10 14 Class Distribution -------------------- 85% | Mutant 8% | Scavenger-Mutant 5% | Gladiator Dominant Class ---------------- Mutant | -10/Materials Mutant | -9/Materials Resources | -11 -10 -9 ----------- Run | Yrd Mat Mat Matter Collected 1070 | 272 173 625 Remotely 218 | . . 218 Salvage Created 1319 | 37 183 1099 Parts 80 | 2 8 70 Haulers Intercepted . | . . . Recyclers Shooed . | . . . Parts Field Recycled . | . . . Retrieved Matter . | . . . Parts Self-Destructed . | . . . Prevented . | . . . Kills | -11 -10 -9 ------- Run | Yrd Mat Mat Combat Hostiles Destroyed 28 | 1 5 22 Melee 11 | . . 11 Guns 12 | 1 1 10 Cannons 2 | . 2 . AOE 3 | . 2 1 Classes Destroyed 9 | 1 5 3 Worker 2 | . 1 1 Builder 2 | . . 2 Tunneler 1 | . 1 . Recycler 5 | . 1 4 Mechanic 1 | . . 1 Watcher 2 | . 1 1 Swarmer 7 | . 2 5 Grunt 15 | 1 3 11 Sentry 6 | . . 6 Best Kill Streak 6 | 1 5 6 Combat Bots Only 4 | 1 2 4 Max Kills in Single Turn 2 | 1 2 2 Gunslinging . | . . . Exploded 1 | . 1 1 Melee 1 | . . 1 Uniques/NPCs Destroyed . | . . . Combat | -11 -10 -9 -------- Run | Yrd Mat Mat Hostile Shots Fired 315 | 3 79 233 Missed 77 | 1 17 59 Hits 238 | 2 62 174 Projectile 238 | 2 62 174 Critical Strikes 4 | . 2 2 Damage Taken 2943 | 22 768 2153 Core 555 | . 154 401 Absorbed by Shields . | . . . Regen/Repaired (Parts) 160 | . . 160 Core Remaining (%) 69 | 100 38 . Volleys Fired 93 | 2 24 67 Largest 2 | 2 2 2 Hottest 66 | 40 66 65 Shots Fired 163 | 4 42 117 Gun 135 | 4 16 115 Cannon 22 | . 22 . Launcher 6 | . 4 2 Special . | . . . Kinetic 155 | 4 38 113 Thermal 2 | . . 2 Explosive 6 | . 4 2 Electromagnetic . | . . . Robot Hit Streak 11 | 3 6 11 Robot Miss Streak 4 | . 3 4 Penetration Max . | . . . Secondary Targets 2 | . . 2 Max Gunslinging Chain 1 | . . 1 Shots Hit Robots 137 | 3 25 109 Core Hits 62 | 2 14 46 Critical Kills 1 | . . 1 Critical Parts Destroyed . | . . . Critical Strikes 6 | . . 6 Destroy 1 | . . 1 Sever 5 | . . 5 Melee Attacks 42 | . . 42 Impact . | . . . Slashing 40 | . . 40 Piercing . | . . . Sneak Attacks 6 | . . 6 Combat Hostiles . | . . . Follow-up Attacks 2 | . . 2 Damage Inflicted 2908 | 33 683 2192 Guns 918 | 33 85 800 Cannons 311 | . 311 . Explosions 501 | . 287 214 Melee 1163 | . . 1163 Ramming 15 | . . 15 Kinetic 1213 | 33 396 784 Thermal 16 | . . 16 Explosive 501 | . 287 214 Electromagnetic . | . . . Impact . | . . . Slashing 1163 | . . 1163 Piercing . | . . . Highest Corruption . | . . . Average Corruption . | . . . Corruption Purged . | . . . Corruption Blocked . | . . . Overload Shots . | . . . Overflow Damage 61 | . 20 41 Projectiles . | . . . Explosions 20 | . 20 . Melee 41 | . . 41 Knockbacks 4 | . 4 . Impact . | . . . Kinetic 4 | . 4 . Secondary . | . . . Self-Inflicted Damage 59 | . 37 22 Shots 3 | . 2 1 Rammed 3 | . . 3 Targets Rammed 5 | . . 5 Kicked . | . . . Crushed 2 | . . 2 Highest Temperature 175 | . 175 55 Average Temperature 42 | . 100 11 Received Heat Transfer 1224 | 12 351 861 Siege Activations . | . . . Martial Activations . | . . . Shielding Activations . | . . . Robots Disrupted . | . . . Combat Hostiles . | . . . Robots Corrupted . | . . . Combat Hostiles . | . . . Parts Fried . | . . . Impact Corruptions . | . . . Robots Melted . | . . . Combat Hostiles . | . . . Parts Melted . | . . . Heat Transferred 37 | . . 37 Parts Sabotaged . | . . . Parts Stolen . | . . . Parts Stripped . | . . . Power Chain Reactions . | . . . Alert | -11 -10 -9 ------- Run | Yrd Mat Mat Maximum Alert Level . | . . . Low Security (%) 100 | 100 100 100 Level 1 . | . . . Level 2 . | . . . Level 3 . | . . . Level 4 . | . . . Level 5 . | . . . High Security . | . . . Max Security . | . . . Peak Influence 144 | 20 78 144 Initial 7 | . . 7 Average 58 | 1 9 91 Influence Increases 893 | 20 220 653 Destroy 0b10 Robot/C 560 | 20 100 440 Destroy 0b10 Robot/NC 65 | . 20 45 Destroy Leader 134 | . 32 102 Successful Hack 28 | . 14 14 Disable Machine 15 | . 15 . Destroy Structure 61 | . 39 22 Lose Combat Pursuer 30 | . . 30 Influence Decreases 802 | 20 203 579 Entered New Map 10 | . . 10 Time Decay 633 | 20 124 489 Lost Part 128 | . 48 80 Purge Threat 31 | . 31 . Squads Dispatched 3 | . 1 2 Investigation 1 | . . 1 Extermination . | . . . Reinforcement 2 | . 1 1 Assault . | . . . Garrison . | . . . Intercept . | . . . Searches Triggered . | . . . Construction Impeded . | . . . Haulers Reinforced . | . . . Active Scanning Responses . | . . . Cargo Convoy Interrupts . | . . . Stealth | -11 -10 -9 --------- Run | Yrd Mat Mat Distress Signals 5 | . 1 4 Communications Jammed . | . . . Distress Signals . | . . . Times Spotted 54 | 1 13 40 Peak Tracking Total 5 | 1 5 5 Tactical Retreats 2 | . . 2 Traps | -11 -10 -9 ------- Run | Yrd Mat Mat Traps Triggered 1 | . . 1 Indirectly . | . . . Trap Hack Attempts . | . . . Triggered . | . . . Disarmed . | . . . Reprogrammed . | . . . Reused . | . . . Traps Extracted . | . . . Installed . | . . . Triggered . | . . . Machines | -11 -10 -9 ---------- Run | Yrd Mat Mat Machines Disabled 1 | . 1 . Max in Single Turn 1 | . 1 . Machines Repaired . | . . . Machines Dismantled . | . . . Machines Sabotaged . | . . . Overloaded Fab Kills . | . . . Hacking | -11 -10 -9 --------- Run | Yrd Mat Mat Machines Accessed 4 | . 1 3 Terminals 2 | . 1 1 Fabricators . | . . . Repair Stations 1 | . . 1 Recycling Units 1 | . . 1 Scanalyzers . | . . . Garrison Access . | . . . Total Hacks 17 | . 5 12 Successful 14 | . 4 10 Failed 3 | . 1 2 Catastrophic . | . . . Database Lockouts . | . . . Manual . | . . . Terminals 9 | . 5 4 Fabricators . | . . . Repair Stations 7 | . . 7 Recycling Units 1 | . . 1 Scanalyzers . | . . . Garrison Access . | . . . Terminal Hacks 8 | . 4 4 Record 1 | . . 1 Prototype ID Bank 1 | . . 1 Emergency Access Points 1 | . . 1 Alert Level 1 | . 1 . Unreport Threat 2 | . 2 . Assault Status 1 | . 1 . Zone Layout 1 | . . 1 Fabricator Hacks . | . . . Repair Station Hacks 5 | . . 5 Scan Component 3 | . . 3 Repair 2 | . . 2 Recycling Unit Hacks 1 | . . 1 Report Inventory 1 | . . 1 Scanalyzer . | . . . Garrison Access Hacks . | . . . Unauthorized Hacks . | . . . Terminals . | . . . Fabricators . | . . . Repair Stations . | . . . Recycling Units . | . . . Scanalyzers . | . . . Garrison Access . | . . . Data Cores Recovered . | . . . Used . | . . . Hacking Detections 2 | . . 2 Full Trace Events 1 | . . 1 Feedback Events . | . . . Feedback Blocked . | . . . Robot Schematics Acquired . | . . . Robots Built . | . . . Authchips . | . . . Time . | . . . Total Robot Build Rating . | . . . Part Schematics Acquired . | . . . Parts Built . | . . . Authchips . | . . . Time . | . . . Total Part Build Rating . | . . . Parts Repaired 2 | . . 2 Time 70 | . . 70 Parts Recycled . | . . . Recycled Matter . | . . . Retrieved Matter . | . . . Retrieved Components . | . . . Parts Scanalyzed . | . . . Part Schematics Acquired . | . . . Parts Damaged . | . . . Bothacking | -11 -10 -9 ------------ Run | Yrd Mat Mat Used RIF Installer . | . . . Robots Hacked 1 | . . 1 Non-combat 1 | . . 1 Combat . | . . . Robot Hacks Applied 1 | . . 1 parse_system 1 | . . 1 Relay Couplers Released . | . . . Fabnet Peak Effective % . | . . . Robots Rewired . | . . . Allies Hacked . | . . . Hacks Repelled . | . . . Allies | -11 -10 -9 -------- Run | Yrd Mat Mat Total Allies . | . . . Largest Group . | . . . Highest-Rated Group . | . . . Highest-Rated Ally . | . . . Total Orders . | . . . Ally Attacks . | . . . Total Damage . | . . . Kills . | . . . Allies Corrupted . | . . . Allies Melted . | . . . Intel | -11 -10 -9 ------- Run | Yrd Mat Mat Active Infowar (turns) . | . . . Robot Analysis Total . | . . . Derelict Logs Recovered . | . . . Drone Launches . | . . . Drone Recoveries . | . . . Exploration | -11 -10 -9 ------------- Run | Yrd Mat Mat Turns Passed 2576 | 239 785 1552 Spaces Moved 1177 | 221 358 598 Core 69 | 68 . 1 Treads 245 | . . 245 Legs 826 | 153 331 342 Wheels 37 | . 27 10 Hover . | . . . Flight . | . . . Fastest Speed 50 | 50 95 95 Average Speed 171 | 98 192 186 Slowest Speed 450 | 120 260 450 Overloaded Moves . | . . . Propulsion Burnouts . | . . . Robots Hopped . | . . . Potential Cave-ins . | . . . Cave-ins Triggered . | . . . Exploration Rate (%) 27 | 7 30 45 Regions Visited 2 Branch Regions . Pre-discovered Areas . | . . . Known Exits Taken . | . . . Unknown Exits Taken 2 | 1 1 . Scrap Searched . | . . . Spaces Dug . | . . . Terrain Destroyed 54 | . 35 19 Melee . | . . . Projectile . | . . . AOE 54 | . 35 19 Terrain Rammed . | . . . Walls Destroyed . | . . . Machines Disabled . | . . . Actions | -11 -10 -9 --------- Run | Yrd Mat Mat Total 1528 | 239 416 873 Wait 68 | . . 68 Move 1175 | 220 357 598 Hop . | . . . Pick Up 51 | 10 16 25 Fast Attach 15 | . 2 13 Attach 29 | 6 8 15 Detach 5 | 1 2 2 Swap 18 | . 1 17 Drop 29 | . 6 23 Fire 93 | 2 24 67 Melee 40 | . . 40 Ram . | . . . Kick . | . . . Crush 5 | . . 5 Escape Stasis . | . . . Rewire . | . . . Trap . | . . . Miscellaneous . | . . . Route ------- -11/Scrapyard -10/Materials -9/Materials (discovered 3 exits: [*Mat x2] / [Min]) History --------- Turn | Location | Event 2 | -11/Scrapyard | Met Revision 17 139 | -11/Scrapyard | Discovered new exit (range 8) 240 | -11/Scrapyard | Entered Materials 311 | -10/Materials | Build established: Mutant 576 | -10/Materials | Discovered new exit (range 12) 967 | -10/Materials | Core integrity fell below 50% 1018 | -10/Materials | Lost 5 parts (1p2n2w) 1025 | -10/Materials | Entered another Materials area 1025 | -9/Materials | Evolved 2 slots: Power x1, Utility x1 1363 | -9/Materials | Lost 3 parts (2p1u) 1398 | -9/Materials | Core integrity fell below 50% 1745 | -9/Materials | Discovered new exit (range 16) 2057 | -9/Materials | Discovered new exit (range 17) 2102 | -9/Materials | Core integrity fell below 20% 2217 | -9/Materials | Discovered new exit (range 3) 2380 | -9/Materials | Repaired Imp. Ion Engine? 2446 | -9/Materials | Repaired Carbon-fiber Leg 2577 | -9/Materials | Destroyed by G-34 Mercenary with Small Laser Last Messages --------------- Rating: 3 Time: 38 >>Repair Repairing Carbon-fiber Leg... ETC: 38 02446_ Repair station completes Carbon-fiber Leg repairs. 02446_ Acquired Carbon-fiber Leg. 02478_ Connecting with Repair Station... >>Scan(Lgt. Nuclear Core) Scanning Lgt. Nuclear Core... Ready to Repair: Lgt. Nuclear Core Rating: 3 Time: 38 02556_ Sneak attack on U-05 Engineer. 02556_ Jacked U-05 Engineer... 02562_ Datajack destroyed. 02576_ Y-45 Defender destroyed. [Achievement: First Step to Greatness] Map ----- +----------------------------------------------------+ | = ##?????# #???# #???# !% #??#[! #########? | | #?????# #???# ##### !%! #??# #????????? | | #??????# #???# %+== =[ #??# #????????? | | #??????# #???# #####/###??# #????????? | | #+####????### ###?# #???# #????# #????????? | | # ######### #?# #???# #????# ##???????? | | #= "" ### ##### ##### ###?????? | | / % T ?? | | #!! ###+## ?? | | ########+## ## # ?? | | #?????? ###/#### ############### ###+##??? | | #?????? " #![ # #?????????????#######???????? | | #?????# T # # #???????????????????????????? | | #????? " # # #???????????????????????????? | | #?????# # """ # #???????????????????????????? | | #?????# # """ # #???????????????????????????? | | #?????# # """ #####???????????????????????????? | | #?????############???????????????????????????????? | | ?????????????????????????????????????????????????? | | ?????????????????????????????????????????????????? | | ????????????##############+########+##########???? | | ????????????# ??? | | ????????????# ??? | | ??###???????# [Y ??? | | ### ##??????# ##########g#### """ """???????? | | !!* #??????# #??????# @% ## """ """??#????? | | !!* #??????# #??????# """ ## """ """ #????? | | !** #??????# ######## """ ## #????? | | ######## # !# """ ## #????? | | # # # # ## """ """ #????? | | """ # = # # """# === ## """ """??#????? | | """ # + +! """# == ## """ """ ?????? | | """ # """ # # """# == ## ?? | | [#= """ # < # # ## ?? | | """=+% """ # ######## " " ## #######+## ???? | | """ ############??????# "R" #######?????????????? | | """ #?????????????????# """ #???????????????????? | | #?????????????????#######???????????????????? | | ######???????????????????????????????????????????? | | #????????????????????????????????????????????????? | | #????????????????????????????????????????????????? | | #????????????????????????????????????????????????? | | #????????????????????????????????????????????????? | | ?????????????????????????????????????????????????? | | ?????????????????????????????????????????????????? | | ?????????????????????????????????????????????????? | | ?????????????????????????????????????????????????? | | ?????????????????????????????????????????????????? | | ?????????????????????????????????????????????????? | | ?????????????????????????????????????????????????? | +----------------------------------------------------+ Best States ------------- Heat Dissipation 42 Energy Generation 21 Energy Capacity 415 Matter Stores 300 Matter Capacity 300 Sight Range 16 Terrain Scan Density 10 Armor Coverage 150 Resistance: EM 15 Evasion (%) 55 Targeting Accuracy 5 Melee Accuracy 10 Recoil Reduction 2 Item Schematics ----------------- None Robot Schematics ------------------ None Fabricated ------------ Nothing Repaired ---------- Imp. Ion Engine | 15% | -9/Materials Carbon-fiber Leg | 8% | -9/Materials Alien Tech Used ----------------- None Achievements -------------- Everything Is Under Control First Step to Greatness Part-time Mechanic Uninvited Guest Use The Force Challenges ------------ None Game ------ Seed MinesnifferCannonReactor Manual? 0 Play Time 00:59:09 Cumulative 0.9 hours Start 2025.10.09 @ 17:58:01 End 2025.10.09 @ 21:08:34 Sessions 1 Manual Loads 0 Difficulty Rogue Special Mode None Game No. 3 Rogue 3 Adventurer 0 Explorer 0 Win Type - Total 0 Types 0/0/0/0/0/0/0/0/0/0 Lore% 0 Gallery% 3 Achievement% 2 Wizard Run 0 Options --------- Layout 1 ASCII 0 Keyboard 0 Movement Arrows Keybinds 0 Fullscreen 1 Font 32/SmallcapsGlow Map View 50x35 Zoom Use 0% Tactical HUD 1 Map Filters NONE Filters NONE Steam 1 RUN: e9694598-e372-47fc-b07f-60341f821e84